fUST/lending_fUST_20240226
["ID","MTS","AMOUNT","RATE_DAILY","PERIOD"]
[315207715,1708933845405,-500.0,0.00019726,2]
[315207716,1708933845414,-500.0,0.00019726,2]
[315207717,1708933845432,-479.17651164,0.00019726,2]
[315207718,1708933845443,-500.0,0.00019726,2]
[315207719,1708933845453,-500.0,0.00019726,2]
[315207720,1708933845463,-500.0,0.00019726,2]
[315207721,1708933845473,-1593.53,0.00019726,2]
[315207722,1708933845483,-722.89,0.00019726,2]
[315207723,1708933845493,-502.15505867,0.00019726,2]
[315207724,1708933845502,-500.0,0.00019726,2]
[315207725,1708933845511,-1742.2,0.00019726,2]
[315207726,1708933845521,-657.75,0.00019726,2]
[315207727,1708933845531,-500.0,0.00019726,2]
[315207728,1708933845540,-500.0,0.00019726,2]
[315207729,1708933845550,-449.10144349,0.00019726,2]
[315207730,1708933845563,-500.0,0.00019726,2]
[315207731,1708933845573,-500.0,0.00019726,2]
[315207732,1708933845583,-500.0,0.00019726,2]
[315207733,1708933845593,-500.0,0.00019726,2]
[315207734,1708933845603,-502.20415089,0.00019726,2]
[315207735,1708933845614,-502.89262175,0.00019726,2]
[315207736,1708933845623,-500.0,0.00019726,2]
[315207737,1708933845633,-500.0,0.00019726,2]
[315207738,1708933845645,-1290.03,0.00019726,2]
[315207739,1708933845655,-500.0,0.00019726,2]
[315207740,1708933845665,-500.0,0.00019726,2]
[315207741,1708933845674,-500.0,0.00019726,2]
[315207742,1708933845684,-500.0,0.00019726,2]
[315207743,1708933845693,-500.0,0.00019726,2]
[315207744,1708933845703,-500.0,0.00019726,2]
[315207745,1708933845712,-539.47583065,0.00019726,2]
[315207746,1708933845721,-500.0,0.00019726,2]
[315207747,1708933845731,-500.79176669,0.00019726,2]
[315207748,1708933845741,-506.01947048,0.00019726,2]
[315207749,1708933845751,-500.0,0.00019726,2]
[315207750,1708933845760,-500.94944783,0.00019726,2]
[315207751,1708933845770,-500.0,0.00019726,2]
[315207752,1708933845781,-500.0,0.00019726,2]
[315207753,1708933845790,-2279.78,0.00019726,2]
[315207754,1708933845801,-500.0,0.00019726,2]
[315207755,1708933845810,-201.81516256,0.00019726,2]
[315207756,1708933845820,-500.0,0.00019726,2]
[315207757,1708933845830,-185.27418586,0.00019726,2]
[315207758,1708933845839,-500.0,0.00019726,2]
[315207759,1708933845849,-631.67993521,0.00019726,2]
[315207760,1708933845861,-405.80118565,0.00019726,2]
[315207761,1708933845870,-500.0,0.00019726,2]
[315207762,1708933845878,-1697.08,0.00019726,2]
[315207763,1708933845888,-500.0,0.00019726,2]
[315207764,1708933845897,-500.0,0.00019726,2]
[315207765,1708933845907,-500.0,0.00019726,2]
[315207767,1708933845916,-500.0,0.00019726,2]
[315207768,1708933845926,-770.41,0.00019726,2]
[315207769,1708933845935,-500.0,0.00019726,2]
[315207770,1708933845944,-501.82744386,0.00019726,2]
[315207771,1708933845954,-500.0,0.00019726,2]
[315207772,1708933845963,-500.0,0.00019726,2]
[315207773,1708933845973,-500.0,0.00019726,2]
[315207774,1708933845982,-1743.77,0.00019726,2]
[315207775,1708933845992,-503.89798039,0.00019726,2]
[315207776,1708933846002,-906.806315,0.00019726,2]
[315207777,1708933846011,-906.806315,0.00019726,2]
[315207778,1708933846022,-500.0,0.00019726,2]
[315207779,1708933846031,-906.806315,0.00019726,2]
[315207780,1708933846041,-906.806315,0.00019726,2]
[315207782,1708933846050,-500.0,0.00019726,2]
[315207783,1708933846060,-500.0,0.00019726,2]
[315207784,1708933846069,-500.0,0.00019726,2]
[315207785,1708933846079,-500.0,0.00019726,2]
[315207786,1708933846089,-500.0,0.00019726,2]
[315207787,1708933846098,-500.0,0.00019726,2]
[315207788,1708933846107,-500.0,0.00019726,2]
[315207789,1708933846119,-500.0,0.00019726,2]
[315207790,1708933846128,-1101.11,0.00019726,2]
[315207791,1708933846138,-500.0,0.00019726,2]
[315207792,1708933846147,-500.0,0.00019726,2]
[315207793,1708933846157,-500.0,0.00019726,2]
[315207794,1708933846168,-500.0,0.00019726,2]
[315207795,1708933846177,-500.0,0.00019726,2]
[315207796,1708933846187,-500.0,0.00019726,2]
[315207797,1708933846196,-390.70436853,0.00019726,2]
[315207798,1708933846207,-500.0,0.00019726,2]
[315207799,1708933846216,-500.0,0.00019726,2]
[315207800,1708933846226,-499.53437694,0.00019726,2]
[315207801,1708933846235,-4401.72,0.00019726,2]
[315207802,1708933846244,-500.0,0.00019726,2]
[315207803,1708933846253,-500.85128667,0.00019726,2]
[315207804,1708933846262,-500.0,0.00019726,2]
[315207805,1708933846272,-834.68,0.00019726,2]
[315207806,1708933846281,-3208.43,0.00019726,2]
[315207807,1708933846291,-500.0,0.00019726,2]
[315207808,1708933846300,-500.0,0.00019726,2]
[315207809,1708933846309,-503.13338535,0.00019726,2]
[315207810,1708933846319,-500.0,0.00019726,2]
[315207811,1708933846328,-500.0,0.00019726,2]
[315207812,1708933846338,-1601.39,0.00019726,2]
[315207813,1708933846347,-500.0,0.00019726,2]
[315207814,1708933846357,-500.0,0.00019726,2]
[315207815,1708933846368,-895.6,0.00019726,2]
[315207816,1708933846377,-500.0,0.00019726,2]
[315207817,1708933846386,-500.0,0.00019726,2]
[315207818,1708933846396,-3013.94,0.00019726,2]
[315207819,1708933846405,-636.98,0.00019726,2]
[315207820,1708933846414,-2316.52,0.00019726,2]
[315207821,1708933846424,-500.0,0.00019726,2]
[315207822,1708933846433,-2040.92,0.00019726,2]
[315207823,1708933846442,-2697.91,0.00019726,2]
[315207824,1708933846452,-500.0,0.00019726,2]
[315207825,1708933846461,-504.12794573,0.00019726,2]
[315207826,1708933846471,-249.10033961,0.00019726,2]
[315207827,1708933846481,-500.0,0.00019726,2]
[315207828,1708933846490,-500.0,0.00019726,2]
[315207829,1708933846500,-442.24473459,0.00019726,2]
[315207830,1708933846509,-1000.0,0.00019726,2]
[315207831,1708933846518,-500.0,0.00019726,2]
[315207832,1708933846527,-500.0,0.00019726,2]
[315207833,1708933846537,-500.0,0.00019726,2]
[315207834,1708933846547,-500.0,0.00019726,2]
[315207835,1708933846558,-612.23784616,0.00019726,2]
[315207836,1708933846569,-504.68,0.00019726,2]
[315207837,1708933846579,-500.0,0.00019726,2]
[315207838,1708933846589,-2179.76,0.00019726,2]
[315207839,1708933846598,-503.32885852,0.00019726,2]
[315207840,1708933846609,-500.0,0.00019726,2]
[315207841,1708933846619,-500.0,0.00019726,2]
[315207842,1708933846628,-500.0,0.00019726,2]
[315207843,1708933846638,-11390.6,0.00019726,2]
[315207844,1708933846648,-500.0,0.00019726,2]
[315207845,1708933846658,-500.0,0.00019726,2]
[315207846,1708933846667,-500.0,0.00019726,2]
[315207847,1708933846677,-23193.98,0.00019726,2]
[315207848,1708933846687,-503.86862046,0.00019726,2]
[315207849,1708933846696,-4344.96,0.00019726,2]
[315207850,1708933846706,-500.81546176,0.00019726,2]
[315207851,1708933846716,-500.0,0.00019726,2]
[315207852,1708933846725,-501.23396073,0.00019726,2]
[315207853,1708933846735,-500.0,0.00019726,2]
[315207854,1708933846744,-487.01483259,0.00019726,2]
[315207855,1708933846754,-2291.28,0.00019726,2]
[315207856,1708933846763,-500.0,0.00019726,2]
[315207857,1708933846773,-500.0,0.00019726,2]
[315207858,1708933846782,-500.0,0.00019726,2]
[315207859,1708933846791,-500.0,0.00019726,2]
[315207860,1708933846801,-238.35007482,0.00019726,2]
[315207861,1708933846811,-503.09460402,0.00019726,2]
[315207862,1708933846823,-500.0,0.00019726,2]
[315207863,1708933846832,-209.81817441,0.00019726,2]
[315207864,1708933846842,-500.0,0.00019726,2]
[315207865,1708933846852,-500.0,0.00019726,2]
[315207866,1708933846863,-2282.25,0.00019726,2]
[315207867,1708933846874,-866.2,0.00019726,2]
[315207868,1708933846885,-500.0,0.00019726,2]
[315207869,1708933846895,-436.52101816,0.00019726,2]
[315207870,1708933846904,-500.0,0.00019726,2]
[315207871,1708933846914,-1772.24,0.00019726,2]
[315207872,1708933846923,-500.0,0.00019726,2]
[315207873,1708933846933,-436.57904397,0.00019726,2]
[315207874,1708933846944,-500.0,0.00019726,2]
[315207875,1708933846953,-500.0,0.00019726,2]
[315207876,1708933846962,-2514.37,0.00019726,2]
[315207877,1708933846971,-278.92397509,0.00019726,2]
[315207878,1708933846981,-507.00886275,0.00019726,2]
[315207879,1708933846990,-8196.53,0.00019726,2]
[315207880,1708933847000,-500.0,0.00019726,2]
[315207881,1708933847010,-678.73,0.00019726,2]
[315207882,1708933847019,-500.0,0.00019726,2]
[315207883,1708933847029,-868.21,0.00019726,2]
[315207884,1708933847038,-500.0,0.00019726,2]
[315207885,1708933847048,-151.0,0.00019726,2]
[315207886,1708933847057,-151.0,0.00019726,2]
[315207887,1708933847066,-500.0,0.00019726,2]
[315207888,1708933847075,-500.0,0.00019726,2]
[315207889,1708933847085,-500.0,0.00019726,2]
[315207890,1708933847094,-1283.38,0.00019726,2]
[315207891,1708933847103,-151.0,0.00019726,2]
[315207892,1708933847112,-151.0,0.00019726,2]
[315207893,1708933847122,-500.0,0.00019726,2]
[315207894,1708933847131,-378.09595608,0.00019726,2]
[315207895,1708933847241,-500.0,0.00019726,2]
[315207896,1708933847250,-500.0,0.00019726,2]
[315207897,1708933847259,-3587.74,0.00019726,2]
[315207898,1708933847268,-22658.04,0.00019726,2]
[315207899,1708933847277,-200.5826354,0.00019726,2]
[315207900,1708933847286,-3384.81215469,0.00019768,2]
[315207901,1708933847296,-621.03277363,0.00019775,2]
[315207902,1708933847305,-153.0,0.000198,2]
[315207903,1708933847314,-153.0,0.000198,2]
[315207904,1708933847323,-306.0,0.00019808,2]
[315207905,1708933847332,-300.0,0.00019854,2]
[315207906,1708933847342,-8230.24916882,0.0001989,2]
[315207907,1708933847351,-3384.81215469,0.00019909,2]
[315207908,1708933847362,-5337.30879984,0.00019973,2]
[315207909,1708933847371,-300.0,0.00019982,2]
[315207910,1708933847381,-500.0,0.00019997,2]
[315207911,1708933847390,-500.0,0.00019997,2]
[315207912,1708933847400,-593.99964599,0.00019997,2]
[315207913,1708933847409,-200.86010344,0.00019997,2]
[315207914,1708933847419,-500.0,0.00019997,2]
[315207915,1708933847428,-500.0,0.00019997,2]
[315207916,1708933847437,-500.0,0.00019997,2]
[315207917,1708933847446,-500.0,0.00019997,2]
[315207918,1708933847455,-500.0,0.00019997,2]
[315207919,1708933847464,-500.0,0.00019997,2]
[315207920,1708933847473,-500.0,0.00019997,2]
[315207921,1708933847483,-500.0,0.00019997,2]
[315207922,1708933847492,-500.0,0.00019997,2]
[315207923,1708933847500,-500.0,0.00019997,2]
[315207924,1708933847509,-500.0,0.00019997,2]
[315207925,1708933847518,-500.0,0.00019997,2]
[315207926,1708933847527,-500.0,0.00019997,2]
[315207927,1708933847536,-500.0,0.00019997,2]
[315207928,1708933847546,-500.0,0.00019997,2]
[315207929,1708933847555,-493.89838306,0.00019997,2]
[315207930,1708933847567,-500.0,0.00019997,2]
[315207931,1708933847577,-500.0,0.00019997,2]
[315207932,1708933847586,-500.0,0.00019997,2]
[315207933,1708933847596,-500.0,0.00019997,2]
[315207934,1708933847606,-500.0,0.00019997,2]
[315207935,1708933847616,-500.0,0.00019997,2]
[315207936,1708933847625,-500.0,0.00019997,2]
[315207937,1708933847635,-500.0,0.00019997,2]
[315207938,1708933847645,-500.0,0.00019997,2]
[315207939,1708933847655,-500.0,0.00019997,2]
[315207940,1708933847665,-500.0,0.00019997,2]
[315207941,1708933847674,-500.0,0.00019997,2]
[315207942,1708933847683,-500.0,0.00019997,2]
[315207943,1708933847692,-500.0,0.00019997,2]
[315207944,1708933847702,-500.0,0.00019997,2]
[315207945,1708933847711,-500.0,0.00019997,2]
[315207946,1708933847721,-500.0,0.00019997,2]
[315207947,1708933847730,-500.0,0.00019997,2]
[315207948,1708933847740,-620.43,0.00019998,2]
[315207949,1708933847750,-151.0,0.00019998,2]
[315207950,1708933847759,-151.0,0.00019998,2]
[315207951,1708933847768,-620.43,0.00019999,2]
[315207952,1708933847777,-620.43,0.00019999,2]
[315207953,1708933847787,-620.43,0.00019999,2]
[315207954,1708933847796,-620.43,0.00019999,2]
[315207955,1708933847828,-620.43,0.00019999,2]
[315207956,1708933847837,-620.43,0.00019999,2]
[315207957,1708933847847,-620.61,0.00019999,2]
[315207958,1708933847856,-169.85706915,0.0002,2]
[315207959,1708933847867,-555.41,0.0002,2]
[315207960,1708933847877,-411.87418666,0.0002,2]
[315207961,1708933847887,-1526.11,0.0002,2]
[315207962,1708933847895,-848.39,0.0002,2]
[315207963,1708933847904,-500.0,0.0002,2]
[315207964,1708933847913,-500.0,0.0002,2]
[315207965,1708933847922,-470.37536287,0.0002,2]
[315207966,1708933847931,-500.0,0.0002,2]
[315207967,1708933847940,-501.65704131,0.0002,2]
[315207968,1708933847949,-500.0,0.0002,2]
[315207969,1708933847958,-500.0,0.0002,2]
[315207970,1708933847967,-500.0,0.0002,2]
[315207971,1708933847977,-500.0,0.0002,2]
[315207972,1708933847987,-500.0,0.0002,2]
[315207973,1708933847995,-500.0,0.0002,2]
[315207974,1708933848005,-1593.53,0.0002,2]
[315207975,1708933848015,-722.89,0.0002,2]
[315207976,1708933848023,-500.0,0.0002,2]
[315207977,1708933848032,-1742.2,0.0002,2]
[315207978,1708933848041,-657.75,0.0002,2]
[315207979,1708933848050,-619.10188517,0.0002,2]
[315207980,1708933848059,-504.63239658,0.0002,2]
[315207981,1708933848068,-500.0,0.0002,2]
[315207982,1708933848077,-504.21335184,0.0002,2]
[315207983,1708933848086,-500.0,0.0002,2]
[315207984,1708933848095,-500.0,0.0002,2]
[315207985,1708933848104,-500.0,0.0002,2]
[315207986,1708933848113,-500.0,0.0002,2]
[315207987,1708933848122,-1290.03,0.0002,2]
[315207988,1708933848131,-500.0,0.0002,2]
[315207989,1708933848140,-500.0,0.0002,2]
[315207990,1708933848149,-500.0,0.0002,2]
[315207991,1708933848158,-500.0,0.0002,2]
[315207992,1708933848167,-500.0,0.0002,2]
[315207993,1708933848176,-492.25353522,0.0002,2]
[315207994,1708933848185,-500.0,0.0002,2]
[315207995,1708933848195,-501.70449876,0.0002,2]
[315207996,1708933848204,-500.0,0.0002,2]
[315207997,1708933848214,-500.0,0.0002,2]
[315207998,1708933848223,-2279.78,0.0002,2]
[315207999,1708933848232,-500.0,0.0002,2]
[315208000,1708933848242,-500.0,0.0002,2]
[315208001,1708933848251,-500.0,0.0002,2]
[315208002,1708933848259,-500.0,0.0002,2]
[315208003,1708933848269,-502.11011131,0.0002,2]
[315208004,1708933848278,-1697.08,0.0002,2]
[315208005,1708933848287,-500.0,0.0002,2]
[315208006,1708933848296,-500.0,0.0002,2]
[315208007,1708933848305,-500.0,0.0002,2]
[315208008,1708933848314,-770.41,0.0002,2]
[315208009,1708933848323,-501.29954357,0.0002,2]
[315208010,1708933848336,-500.0,0.0002,2]
[315208011,1708933848345,-500.0,0.0002,2]
[315208012,1708933848354,-505.95058571,0.0002,2]
[315208013,1708933848364,-1743.77,0.0002,2]
[315208014,1708933848374,-906.806315,0.0002,2]
[315208015,1708933848383,-500.0,0.0002,2]
[315208016,1708933848393,-906.806315,0.0002,2]
[315208017,1708933848402,-906.806315,0.0002,2]
[315208018,1708933848410,-906.806315,0.0002,2]
[315208019,1708933848419,-504.21322817,0.0002,2]
[315208020,1708933848428,-646.85521638,0.0002,2]
[315208021,1708933848437,-500.0,0.0002,2]
[315208022,1708933848446,-500.0,0.0002,2]
[315208023,1708933848455,-239.92493776,0.0002,2]
[315208024,1708933848464,-500.0,0.0002,2]
[315208025,1708933848473,-500.0,0.0002,2]
[315208026,1708933848482,-500.0,0.0002,2]
[315208027,1708933848490,-1101.11,0.0002,2]
[315208028,1708933848499,-500.0,0.0002,2]
[315208029,1708933848509,-501.72333826,0.0002,2]
[315208030,1708933848518,-500.0,0.0002,2]
[315208031,1708933848527,-500.0,0.0002,2]
[315208032,1708933848535,-500.0,0.0002,2]
[315208033,1708933848545,-500.0,0.0002,2]
[315208034,1708933848554,-500.0,0.0002,2]
[315208035,1708933848566,-4401.72,0.0002,2]
[315208036,1708933848575,-502.09355324,0.0002,2]
[315208037,1708933848584,-500.0,0.0002,2]
[315208038,1708933848594,-343.54014444,0.0002,2]
[315208039,1708933849052,-151.0,0.00019178,2]
[315208040,1708933849151,-151.0,0.00019452,2]
[315208041,1708933849161,-56.61272348,0.00019726,2]
[315208042,1708933849173,-95.7922619,0.00019726,2]
[315208043,1708933849183,-491.13985556,0.0002,2]
[315208044,1708933849193,-3208.43,0.0002,2]
[315208045,1708933849202,-500.0,0.0002,2]
[315208046,1708933849212,-371.5006517,0.0002,2]
[315208047,1708933849222,-500.0,0.0002,2]
[315208048,1708933849231,-500.0,0.0002,2]
[315208049,1708933849241,-1601.39,0.0002,2]
[315208050,1708933849251,-500.0,0.0002,2]
[315208051,1708933849260,-500.0,0.0002,2]
[315208052,1708933849270,-895.6,0.0002,2]
[315208053,1708933849279,-500.0,0.0002,2]
[315208054,1708933849288,-3013.94,0.0002,2]
[315208055,1708933849298,-636.98,0.0002,2]
[315208056,1708933849307,-2316.52,0.0002,2]
[315208057,1708933849317,-2040.92,0.0002,2]
[315208058,1708933849326,-2697.91,0.0002,2]
[315208059,1708933849335,-493.4463929,0.0002,2]
[315208060,1708933849385,-6.5536071,0.0002,2]
[315208061,1708933849395,-500.0,0.0002,2]
[315208062,1708933849405,-500.0,0.0002,2]
[315208063,1708933849414,-1000.0,0.0002,2]
[315208064,1708933849424,-69.63747449,0.0002,2]
[315208077,1708934411912,5000.0,0.00021,21]
[315208271,1708935034289,-428.36024684,0.00018314,2]
[315208272,1708935034299,-11192.5819948,0.00018315,2]
[315208273,1708935034308,-187.77356773,0.00019078,2]
[315208274,1708935034317,-500.0,0.00019178,2]
[315208275,1708935034326,-500.0,0.00019178,2]
[315208276,1708935034336,-500.0,0.00019178,2]
[315208277,1708935034344,-527.46681616,0.00019178,2]
[315208278,1708935034354,-500.0,0.00019178,2]
[315208279,1708935034364,-500.0,0.00019178,2]
[315208280,1708935034373,-692.77,0.00019178,2]
[315208281,1708935034383,-500.0,0.00019178,2]
[315208282,1708935034391,-500.0,0.00019178,2]
[315208283,1708935034400,-500.0,0.00019178,2]
[315208284,1708935034410,-500.0,0.00019178,2]
[315208285,1708935034419,-69.04737447,0.00019178,2]
[315208295,1708935040155,-432.44409481,0.00019178,2]
[315208296,1708935040164,-500.0,0.00019178,2]
[315208297,1708935040174,-501.7897385,0.00019178,2]
[315208298,1708935040183,-502.27989563,0.00019178,2]
[315208299,1708935040192,-581.87051322,0.00019178,2]
[315208300,1708935040201,-500.0,0.00019178,2]
[315208301,1708935040210,-500.0,0.00019178,2]
[315208302,1708935040219,-500.0,0.00019178,2]
[315208303,1708935040228,-500.0,0.00019178,2]
[315208304,1708935040237,-1236.28,0.00019178,2]
[315208305,1708935040246,-500.0,0.00019178,2]
[315208306,1708935040255,-500.0,0.00019178,2]
[315208307,1708935040264,-500.0,0.00019178,2]
[315208308,1708935040273,-500.0,0.00019178,2]
[315208309,1708935040282,-500.0,0.00019178,2]
[315208310,1708935040291,-500.0,0.00019178,2]
[315208311,1708935040300,-500.0,0.00019178,2]
[315208312,1708935040308,-500.0,0.00019178,2]
[315208313,1708935040317,-500.0,0.00019178,2]
[315208314,1708935040326,-432.63229669,0.00019178,2]
[315208315,1708935040335,-500.0,0.00019178,2]
[315208316,1708935040344,-500.0,0.00019178,2]
[315208317,1708935040354,-500.0,0.00019178,2]
[315208318,1708935040363,-500.0,0.00019178,2]
[315208319,1708935040372,-502.01865313,0.00019178,2]
[315208320,1708935040382,-500.0,0.00019178,2]
[315208321,1708935040391,-500.0,0.00019178,2]
[315208322,1708935040400,-500.0,0.00019178,2]
[315208323,1708935040409,-1671.11,0.00019178,2]
[315208324,1708935040418,-738.31,0.00019178,2]
[315208325,1708935040427,-500.0,0.00019178,2]
[315208326,1708935040435,-500.0,0.00019178,2]
[315208327,1708935040445,-501.61886765,0.00019178,2]
[315208328,1708935040453,-500.0,0.00019178,2]
[315208329,1708935040462,-500.0,0.00019178,2]
[315208330,1708935040471,-500.0,0.00019178,2]
[315208331,1708935040480,-500.0,0.00019178,2]
[315208332,1708935040489,-500.0,0.00019178,2]
[315208333,1708935040498,-507.460159,0.00019178,2]
[315208334,1708935040507,-551.4523923,0.00019178,2]
[315208335,1708935040516,-536.2492443,0.00019178,2]
[315208336,1708935040525,-500.0,0.00019178,2]
[315208337,1708935040534,-630.35,0.00019178,2]
[315208338,1708935040544,-500.0,0.00019178,2]
[315208339,1708935040553,-500.0,0.00019178,2]
[315208340,1708935040563,-500.0,0.00019178,2]
[315208341,1708935040572,-500.0,0.00019178,2]
[315208342,1708935040581,-500.0,0.00019178,2]
[315208343,1708935040590,-500.0,0.00019178,2]
[315208344,1708935040599,-1669.61,0.00019178,2]
[315208345,1708935040607,-500.0,0.00019178,2]
[315208346,1708935040617,-500.0,0.00019178,2]
[315208347,1708935040626,-500.0,0.00019178,2]
[315208348,1708935040635,-500.0,0.00019178,2]
[315208349,1708935040644,-500.0,0.00019178,2]
[315208350,1708935040653,-500.0,0.00019178,2]
[315208351,1708935040663,-583.9,0.00019178,2]
[315208352,1708935040672,-500.0,0.00019178,2]
[315208353,1708935040681,-500.0,0.00019178,2]
[315208354,1708935040690,-500.0,0.00019178,2]
[315208355,1708935040699,-505.83665894,0.00019178,2]
[315208356,1708935040709,-500.0,0.00019178,2]
[315208357,1708935040718,-588.75636197,0.00019178,2]
[315208358,1708935040728,-500.0,0.00019178,2]
[315208360,1708935040738,-500.0,0.00019178,2]
[315208362,1708935040747,-500.0,0.00019178,2]
[315208364,1708935040757,-500.0,0.00019178,2]
[315208365,1708935040765,-500.0,0.00019178,2]
[315208366,1708935040775,-500.0,0.00019178,2]
[315208367,1708935040784,-500.76681216,0.00019178,2]
[315208369,1708935040793,-500.89874379,0.00019178,2]
[315208370,1708935040802,-500.0,0.00019178,2]
[315208371,1708935040811,-500.0,0.00019178,2]
[315208372,1708935040821,-500.0,0.00019178,2]
[315208373,1708935040829,-500.0,0.00019178,2]
[315208374,1708935040838,-500.0,0.00019178,2]
[315208376,1708935040847,-500.0,0.00019178,2]
[315208378,1708935040856,-234.57397735,0.00019178,2]
[315208380,1708935040866,-500.0,0.00019178,2]
[315208382,1708935040876,-500.0,0.00019178,2]
[315208383,1708935040885,-500.0,0.00019178,2]
[315208384,1708935040894,-500.3462092,0.00019178,2]
[315208385,1708935040906,-500.0,0.00019178,2]
[315208387,1708935040915,-359.8403748,0.00019178,2]
[315208389,1708935040923,-501.0884164,0.00019178,2]
[315208390,1708935040932,-2184.79,0.00019178,2]
[315208391,1708935040942,-500.0,0.00019178,2]
[315208392,1708935040953,-500.0,0.00019178,2]
[315208393,1708935040962,-500.0,0.00019178,2]
[315208394,1708935040973,-500.0,0.00019178,2]
[315208395,1708935040984,-500.0,0.00019178,2]
[315208396,1708935040993,-500.0,0.00019178,2]
[315208397,1708935041001,-500.0,0.00019178,2]
[315208398,1708935041113,-500.0,0.00019178,2]
[315208399,1708935041123,-500.0,0.00019178,2]
[315208400,1708935041133,-500.0,0.00019178,2]
[315208401,1708935041141,-1773.94,0.00019178,2]
[315208402,1708935041151,-500.0,0.00019178,2]
[315208403,1708935041160,-500.0,0.00019178,2]
[315208404,1708935041169,-500.58116796,0.00019178,2]
[315208405,1708935041178,-500.0,0.00019178,2]
[315208406,1708935041187,-500.0,0.00019178,2]
[315208407,1708935041195,-500.0,0.00019178,2]
[315208408,1708935041205,-500.0,0.00019178,2]
[315208409,1708935041213,-501.13519098,0.00019178,2]
[315208410,1708935041222,-500.0,0.00019178,2]
[315208411,1708935041240,-500.0,0.00019178,2]
[315208412,1708935041252,-175.10182328,0.00019178,2]
[315208413,1708935041262,-500.0,0.00019178,2]
[315208414,1708935041272,-500.0,0.00019178,2]
[315208415,1708935041282,-266.51557641,0.00019178,2]
[315208416,1708935041292,-500.0,0.00019178,2]
[315208417,1708935041302,-312.51592479,0.00019178,2]
[315208418,1708935041311,-151.0,0.00019178,2]
[315208419,1708935041321,-500.0,0.00019178,2]
[315208420,1708935041331,-500.0,0.00019178,2]
[315208421,1708935041341,-500.0,0.00019178,2]
[315208422,1708935041352,-500.0,0.00019178,2]
[315208423,1708935041361,-500.0,0.00019178,2]
[315208424,1708935041372,-500.0,0.00019178,2]
[315208425,1708935041381,-500.0,0.00019178,2]
[315208426,1708935041391,-500.0,0.00019178,2]
[315208427,1708935041401,-1055.24,0.00019178,2]
[315208428,1708935041411,-553.1,0.00019178,2]
[315208429,1708935041421,-500.0,0.00019178,2]
[315208430,1708935041430,-500.0,0.00019178,2]
[315208431,1708935041440,-1283.38,0.00019178,2]
[315208432,1708935041449,-500.0,0.00019178,2]
[315208433,1708935041459,-544.80572393,0.00019178,2]
[315208434,1708935041469,-500.0,0.00019178,2]
[315208435,1708935041478,-500.0,0.00019178,2]
[315208436,1708935041488,-500.0,0.00019178,2]
[315208437,1708935041497,-500.0,0.00019178,2]
[315208438,1708935041507,-500.0,0.00019178,2]
[315208439,1708935041516,-779.44,0.00019178,2]
[315208440,1708935041526,-1488.87,0.00019178,2]